bitfinex/quotes_BTCUSD_20220101
["timestamp","ask_amount","ask_price","bid_price","bid_amount"]
[1641067850485,2.25086068,47335.0,47334.0,0.86834606]
[1641067850686,2.22933958,47335.0,47334.0,0.86834606]
[1641067851487,2.25063332,47335.0,47334.0,0.86834606]
[1641067851726,2.22984369,47335.0,47334.0,0.86834606]
[1641067852128,2.22984369,47335.0,47334.0,1.24538727]
[1641067852327,2.22984369,47335.0,47334.0,0.97397106]
[1641067852527,2.25021962,47335.0,47334.0,1.1381838]
[1641067852731,2.22892588,47335.0,47334.0,0.86834606]
[1641067853628,2.24869877,47335.0,47334.0,0.86834606]
[1641067853828,2.22832284,47335.0,47334.0,0.86834606]
[1641067854229,2.22832284,47335.0,47334.0,1.14807026]
[1641067855129,2.24725671,47335.0,47334.0,0.86834606]
[1641067855332,2.22748382,47335.0,47334.0,1.13830843]
[1641067855585,2.24936733,47335.0,47334.0,1.13830843]
[1641067855786,2.23043346,47335.0,47334.0,0.86834606]
[1641067857086,2.25088413,47335.0,47334.0,0.86834606]
[1641067857289,2.22900062,47335.0,47334.0,0.86834606]
[1641067857689,2.24892992,47335.0,47334.0,0.86834606]
[1641067858588,2.20854995,47335.0,47334.0,0.86834606]
[1641067858791,2.22781325,47335.0,47334.0,0.86834606]
[1641067858989,2.22781325,47335.0,47334.0,0.97397406]
[1641067859629,2.24872675,47335.0,47334.0,0.97397406]
[1641067859829,2.22946345,47335.0,47334.0,0.97397406]
[1641067860030,2.22946345,47335.0,47334.0,0.97382406]
[1641067860732,2.24773386,47335.0,47334.0,0.97382406]
[1641067860932,2.22682036,47335.0,47334.0,0.97382406]
[1641067861733,2.22771048,47335.0,47334.0,0.97382406]
[1641067862732,2.22976179,47335.0,47334.0,0.97382406]
[1641067863584,2.24997157,47335.0,47334.0,0.73400516]
[1641067863783,2.24997157,47335.0,47334.0,0.63400516]
[1641067863784,2.56845273,47335.0,47334.0,0.63400516]
[1641067864589,3.1881899,47335.0,47334.0,0.63400516]
[1641067864786,3.16798012,47335.0,47334.0,0.63400516]
[1641067864990,2.56829556,47335.0,47334.0,0.63400516]
[1641067865687,2.58765218,47335.0,47334.0,0.63400516]
[1641067865886,2.56759957,47335.0,47334.0,0.63400516]
[1641067866730,2.58796695,47335.0,47334.0,0.63400516]
[1641067866931,3.16720086,47335.0,47334.0,0.63400516]
[1641067867732,3.18840164,47335.0,47334.0,0.63400516]
[1641067867932,3.16803426,47335.0,47334.0,0.63400516]
[1641067868333,2.56944373,47335.0,47334.0,0.63400516]
[1641067868739,3.30868389,47335.0,47334.0,0.63400516]
[1641067868933,2.57013485,47335.0,47334.0,0.63400516]
[1641067869736,2.5912538,47335.0,47334.0,0.63400516]
[1641067869936,2.5693619,47335.0,47334.0,0.63400516]
[1641067870810,2.58976231,47335.0,47334.0,0.63400516]
[1641067871014,2.56864336,47335.0,47334.0,0.63400516]
[1641067871312,2.67430436,47335.0,47334.0,0.63400516]
[1641067871509,4.28771806,47335.0,47334.0,0.63400516]
[1641067871709,4.30585498,47335.0,47334.0,0.63400516]
[1641067871910,3.56810631,47335.0,47334.0,0.63400516]
[1641067872711,4.78756153,47335.0,47334.0,0.63400516]
[1641067872910,4.76942461,47335.0,47334.0,0.63400516]
[1641067873714,4.78828106,47335.0,47334.0,0.63400516]
[1641067873912,4.76986217,47335.0,47334.0,0.63400516]
[1641067874727,4.79023392,47335.0,47334.0,0.63400516]
[1641067874929,4.77137747,47335.0,47334.0,0.63400516]
[1641067875728,4.79010268,47335.0,47334.0,0.63400516]
[1641067875932,4.76973093,47335.0,47334.0,0.63400516]
[1641067876128,4.4055261,47335.0,47334.0,0.63400516]
[1641067876830,4.42416831,47335.0,47334.0,0.63400516]
[1641067877128,4.4054431,47335.0,47334.0,0.63400516]
[1641067877530,4.66398916,47335.0,47334.0,0.63400516]
[1641067877728,4.68545975,47335.0,47334.0,0.63400516]
[1641067877982,3.46577898,47335.0,47334.0,0.63400516]
[1641067878776,3.48634125,47335.0,47334.0,0.63400516]
[1641067878977,3.46487066,47335.0,47334.0,0.63400516]
[1641067879177,4.18250262,47335.0,47334.0,0.63400516]
[1641067879579,3.46487066,47335.0,47334.0,0.63400516]
[1641067879881,3.4836782,47335.0,47334.0,0.63400516]
[1641067880080,3.46311593,47335.0,47334.0,0.63400516]
[1641067880879,3.48341132,47335.0,47334.0,0.63400516]
[1641067881083,3.46460378,47335.0,47334.0,0.63400516]
[1641067881735,4.20282367,47335.0,47334.0,0.63400516]
[1641067881938,4.18252828,47335.0,47334.0,0.63400516]
[1641067882638,3.46489099,47335.0,47334.0,0.63400516]
[1641067883038,4.18241913,47335.0,47334.0,0.63400516]
[1641067883439,4.20181839,47335.0,47334.0,0.63400516]
[1641067883641,4.18123579,47335.0,47334.0,0.63400516]
[1641067883838,4.20309435,47335.0,47334.0,0.63400516]
[1641067884039,4.18369509,47335.0,47334.0,0.63400516]
[1641067884439,3.46616695,47335.0,47334.0,0.63400516]
[1641067884838,4.20158557,47335.0,47334.0,0.63400516]
[1641067885039,4.17972701,47335.0,47334.0,0.63400516]
[1641067885772,4.19788114,47335.0,47334.0,0.63400516]
[1641067885972,4.17923409,47335.0,47334.0,0.63400516]
[1641067886175,3.46246252,47335.0,47334.0,0.63400516]
[1641067886775,3.48346725,47335.0,47334.0,0.63400516]
[1641067886973,3.46531312,47335.0,47334.0,0.63400516]
[1641067887173,4.18291219,47335.0,47334.0,0.63400516]
[1641067887775,4.20297059,47335.0,47334.0,0.63400516]
[1641067887975,4.18196586,47335.0,47334.0,0.63400516]
[1641067888777,4.20248076,47335.0,47334.0,0.63400516]
[1641067888976,4.18242236,47335.0,47334.0,0.63400516]
[1641067889822,4.20223363,47335.0,47334.0,0.63400516]
[1641067890022,4.18171873,47335.0,47334.0,0.63400516]
[1641067890324,4.18171873,47335.0,47334.0,0.63379]
[1641067891428,4.20068904,47335.0,47334.0,0.63379]
[1641067892325,4.16190746,47335.0,47334.0,0.63379]
[1641067892524,4.18163234,47335.0,47334.0,0.63379]
[1641067892978,4.20313306,47335.0,47334.0,0.63379]
[1641067893180,4.18340818,47335.0,47334.0,0.63379]
[1641067893980,4.20243664,47335.0,47334.0,0.63379]
[1641067894181,4.18093592,47335.0,47334.0,0.63379]
[1641067894779,3.46333685,47335.0,47334.0,0.63379]
[1641067894979,3.48270201,47335.0,47334.0,0.63379]
[1641067895182,4.18127262,47335.0,47334.0,0.63379]
[1641067895580,3.46367355,47335.0,47334.0,0.63379]
[1641067895981,3.48214374,47335.0,47334.0,0.63379]
[1641067896281,3.46277858,47335.0,47334.0,0.63379]
[1641067896921,3.48312597,47335.0,47334.0,0.63379]
[1641067897921,3.50141015,47335.0,47334.0,0.63379]
[1641067898121,3.46259257,47335.0,47334.0,0.63379]
[1641067898322,2.56652713,47335.0,47334.0,0.63379]
[1641067898923,2.58552093,47335.0,47334.0,0.63379]
[1641067899128,2.56723675,47335.0,47334.0,0.63379]
[1641067900024,3.48262562,47335.0,47334.0,0.63379]
[1641067900671,2.58656018,47335.0,47334.0,0.63379]
[1641067901170,2.54824295,47335.0,47334.0,0.63379]
[1641067901974,2.56839454,47335.0,47334.0,0.63379]
[1641067902272,2.56857239,47335.0,47334.0,0.63379]
[1641067902473,2.54824295,47335.0,47334.0,0.63379]
[1641067903072,3.46265957,47335.0,47334.0,0.63379]
[1641067903974,3.48385768,47335.0,47334.0,0.63379]
[1641067904227,3.4655065,47335.0,47334.0,0.63379]
[1641067905127,3.48352394,47335.0,47334.0,0.63379]
[1641067905326,3.46232583,47335.0,47334.0,0.63379]
[1641067905929,3.48188539,47335.0,47334.0,0.63379]
[1641067906128,3.46386795,47335.0,47334.0,0.63379]
[1641067906427,2.56780251,47335.0,47334.0,0.63379]
[1641067907031,2.58677357,47335.0,47334.0,0.63379]
[1641067907231,2.56721401,47335.0,47334.0,0.63379]
[1641067907970,2.58783938,47335.0,47334.0,0.63379]
[1641067908272,2.56886832,47335.0,47334.0,0.63379]
[1641067909074,2.58858607,47335.0,47334.0,0.63379]
[1641067909274,2.5679607,47335.0,47334.0,0.63379]
[1641067910078,2.58964969,47335.0,47334.0,0.63379]
[1641067910978,2.54824295,47335.0,47334.0,0.63379]
[1641067911177,2.56812024,47335.0,47334.0,0.63379]
[1641067912028,2.5866001,47335.0,47334.0,0.63379]
[1641067912234,2.56672281,47335.0,47334.0,0.63379]
[1641067913035,2.58515,47335.0,47334.0,0.63379]
[1641067913231,2.56667014,47335.0,47334.0,0.63379]
[1641067914029,2.58723765,47335.0,47334.0,0.63379]
[1641067914229,2.56881046,47335.0,47334.0,0.63379]
[1641067915030,2.5904128,47335.0,47334.0,0.63379]
[1641067915231,2.56984529,47335.0,47334.0,0.63379]
[1641067916086,2.59025971,47335.0,47334.0,0.63379]
[1641067916283,2.56865737,47335.0,47334.0,0.63379]
[1641067917184,3.18769189,47335.0,47334.0,0.63379]
[1641067917384,2.56702275,47335.0,47334.0,0.63379]
[1641067918584,2.58623755,47335.0,47334.0,0.63379]
[1641067918786,2.56745775,47335.0,47334.0,0.63379]
[1641067919244,2.56770045,47335.0,47334.0,0.63379]
[1641067919847,2.56770045,47335.0,47334.0,0.73379]
[1641067920047,0.04000308,47335.0,47334.0,1.04412386]
[1641067920242,0.04000308,47335.0,47334.0,0.73379]
[1641067920744,0.04000308,47335.0,47334.0,0.786604]
[1641067920944,0.71759907,47336.0,47335.0,0.23915268]
[1641067921143,0.73881407,47336.0,47335.0,1.12854968]
[1641067921346,0.73881407,47336.0,47335.0,1.12874658]
[1641067921545,0.021215,47336.0,47335.0,1.22874658]
[1641067921743,0.021215,47336.0,47335.0,1.56843958]
[1641067921945,0.021215,47336.0,47335.0,1.41843958]
[1641067922146,0.03997129,47336.0,47335.0,1.41843958]
[1641067922347,0.01875629,47336.0,47335.0,1.41843958]
[1641067922548,0.01875629,47336.0,47335.0,0.97874658]
[1641067922747,0.01875629,47336.0,47335.0,1.27691504]
[1641067922996,0.01875629,47336.0,47335.0,1.12874658]
[1641067923189,0.00937523,47339.0,47335.0,1.12874658]
[1641067923389,0.00937523,47339.0,47338.0,0.15]
[1641067923590,1.35906823,47339.0,47338.0,0.78374]
[1641067923891,1.35906823,47339.0,47338.0,0.78388213]
[1641067924189,1.349693,47339.0,47338.0,0.78388213]
[1641067924791,0.339693,47339.0,47338.0,0.78388213]
[1641067925192,0.35842285,47339.0,47338.0,0.78388213]
[1641067925590,0.73842285,47339.0,47338.0,0.78388213]
[1641067926491,1.15842285,47339.0,47338.0,0.78388213]
[1641067926720,1.35843971,47339.0,47338.0,0.78388213]
[1641067926920,1.33970986,47339.0,47338.0,0.78388213]
[1641067927121,1.36130339,47339.0,47338.0,0.78388213]
[1641067927324,1.34146519,47339.0,47338.0,0.78388213]
[1641067927522,1.11128653,47339.0,47338.0,0.78388213]
[1641067928124,1.13041101,47339.0,47338.0,0.78388213]
[1641067928322,1.10881748,47339.0,47338.0,0.78388213]
[1641067928524,0.73881748,47339.0,47338.0,0.78388213]
[1641067929124,0.75987274,47339.0,47338.0,0.78388213]
[1641067929323,0.42017974,47339.0,47338.0,0.78388213]
[1641067929526,0.89017974,47339.0,47338.0,0.78388213]
[1641067930125,0.91064495,47339.0,47338.0,0.78388213]
[1641067930327,0.87046521,47339.0,47338.0,0.78388213]
[1641067930593,1.21015821,47339.0,47338.0,0.78388213]
[1641067931192,1.22868004,47339.0,47338.0,0.78388213]
[1641067931392,1.20821483,47339.0,47338.0,0.78388213]
[1641067932193,1.22974979,47339.0,47338.0,0.78388213]
[1641067932997,1.189693,47339.0,47338.0,0.78388213]
[1641067933196,1.20984756,47339.0,47338.0,0.78388213]
[1641067934735,1.22961531,47339.0,47338.0,0.78388213]
[1641067934932,1.20946075,47339.0,47338.0,0.78388213]
[1641067935132,1.22861454,47339.0,47338.0,0.78388213]
[1641067935332,0.01915379,47339.0,47338.0,0.78388213]
[1641067935534,0.39915379,47339.0,47338.0,0.78388213]
[1641067936131,0.41899059,47339.0,47338.0,0.78388213]
[1641067936333,0.3998368,47339.0,47338.0,0.78388213]
[1641067936533,0.8398368,47339.0,47338.0,0.78388213]
[1641067937332,0.85876102,47339.0,47338.0,0.78388213]
[1641067937531,0.83892422,47339.0,47338.0,0.78388213]
[1641067937989,1.17861722,47339.0,47338.0,0.78388213]
[1641067938192,1.19902505,47339.0,47338.0,0.78388213]
[1641067938391,1.18010083,47339.0,47338.0,0.78388213]
[1641067939790,1.19850894,47339.0,47338.0,0.78388213]
[1641067939990,1.17810111,47339.0,47338.0,0.78388213]
[1641067940191,1.19688327,47339.0,47338.0,0.78388213]
[1641067940592,1.159693,47339.0,47338.0,0.78388213]
[1641067941845,1.17789915,47339.0,47338.0,0.78388213]
[1641067942244,1.19803253,47339.0,47338.0,0.78388213]
[1641067942446,1.17982638,47339.0,47338.0,0.78388213]
[1641067943348,1.19948765,47339.0,47338.0,0.78388213]
[1641067943546,1.17935427,47339.0,47338.0,0.78388213]
[1641067944247,1.1982265,47339.0,47338.0,0.78388213]
[1641067944445,1.17856523,47339.0,47338.0,0.78388213]
[1641067945479,1.19768569,47339.0,47338.0,0.78388213]
[1641067945681,1.17881346,47339.0,47338.0,0.78388213]
[1641067946281,1.25243923,47339.0,47338.0,0.78388213]
[1641067946582,1.23331877,47339.0,47338.0,0.78388213]
[1641067947381,1.25264191,47339.0,47338.0,0.78388213]
[1641067948387,1.23391073,47339.0,47338.0,0.78388213]
[1641067948586,1.83408939,47339.0,47338.0,0.78388213]
[1641067948787,1.38908939,47339.0,47338.0,0.78388213]
[1641067949426,1.38712827,47339.0,47338.0,0.78388213]
[1641067950028,0.78694961,47339.0,47338.0,0.78388213]
[1641067950228,0.80515649,47339.0,47338.0,0.78388213]
[1641067950427,0.78678988,47339.0,47338.0,0.78388213]
[1641067951434,0.80754525,47339.0,47338.0,0.78388213]
[1641067951630,0.78933837,47339.0,47338.0,0.78388213]
[1641067952228,0.80830619,47339.0,47338.0,0.78388213]
[1641067952628,0.41255082,47339.0,47338.0,0.78388213]
[1641067953294,0.43306337,47339.0,47338.0,0.78388213]
[1641067953598,0.41409555,47339.0,47338.0,0.78388213]
[1641067953795,0.07440255,47339.0,47338.0,0.78374]
[1641067954394,0.09341842,47339.0,47338.0,0.78374]
[1641067954597,0.07290587,47339.0,47338.0,0.78374]
[1641067954995,0.41259887,47339.0,47338.0,0.78374]
[1641067955594,0.393583,47339.0,47338.0,0.78374]
[1641067956398,0.41444281,47339.0,47338.0,0.78374]
[1641067957428,0.432875,47339.0,47338.0,0.78374]
[1641067957629,1.01219385,47339.0,47338.0,0.78374]
[1641067958330,0.43106128,47339.0,47338.0,0.78374]
[1641067958532,0.41262909,47339.0,47338.0,0.78374]
[1641067959131,0.74262909,47339.0,47338.0,0.78374]
[1641067959332,0.76110984,47339.0,47338.0,0.78374]
[1641067959532,1.34224241,47339.0,47338.0,0.63374]
[1641067960489,1.34493815,47339.0,47338.0,0.63374]
[1641067961086,2.17493815,47339.0,47338.0,0.63374]
[1641067961395,0.10565966,47335.0,47329.0,0.20011]
[1641067961584,1.54697716,47330.0,47329.0,0.20011]
[1641067961785,1.93387016,47330.0,47329.0,0.20011]
[1641067961985,1.98387016,47330.0,47329.0,0.20011]
[1641067962189,2.8799356,47330.0,47329.0,0.20011]
[1641067962384,3.59753467,47330.0,47329.0,0.20011]
[1641067962582,3.79753467,47330.0,47329.0,0.20011]
[1641067962785,3.0799356,47330.0,47329.0,0.20011]
[1641067962987,4.3496901,47330.0,47329.0,0.2]
[1641067963186,7.59180852,47330.0,47329.0,0.2]
[1641067963584,7.61197574,47330.0,47329.0,0.2]
[1641067963988,7.6131919,47330.0,47329.0,0.2]
[1641067964427,8.7311919,47330.0,47329.0,0.2]
[1641067965029,8.74992157,47330.0,47329.0,0.2]
[1641067965228,8.72975435,47330.0,47329.0,0.2]
[1641067965631,8.72975435,47330.0,47329.0,0.16756561]
[1641067966031,8.74903963,47330.0,47329.0,0.16756561]
[1641067966233,8.73030996,47330.0,47329.0,0.16756561]
[1641067966430,8.75007221,47330.0,47329.0,0.16756561]
[1641067966635,8.73078693,47330.0,47329.0,0.16756561]
[1641067967434,8.75129839,47330.0,47329.0,0.16756561]
[1641067967634,8.83153614,47330.0,47329.0,0.16756561]
[1641067968577,8.83026581,47330.0,47329.0,0.16756561]
[1641067968978,8.83547551,47330.0,47329.0,0.16756561]
[1641067969377,8.85518817,47330.0,47329.0,0.16756561]
[1641067969579,8.83594704,47330.0,47329.0,0.16756561]
[1641067970580,8.85579161,47330.0,47329.0,0.16756561]
[1641067970780,8.83607895,47330.0,47329.0,0.16756561]
[1641067972049,8.85768863,47330.0,47329.0,0.16756561]
[1641067972246,8.5047569,47330.0,47329.0,0.16756561]
[1641067972446,8.52613879,47330.0,47329.0,0.16756561]
[1641067972646,8.50452911,47330.0,47329.0,0.16756561]
[1641067973246,8.50452911,47330.0,47325.0,0.0003493]
[1641067973247,8.55737811,47330.0,47325.0,0.0003493]
[1641067973447,2.66273,47326.0,47325.0,0.0003493]
[1641067973750,3.70599544,47326.0,47325.0,0.0003493]
[1641067974353,4.92538233,47326.0,47325.0,0.0003493]
[1641067974748,4.97823075,47326.0,47325.0,0.0003493]
[1641067975351,4.99949181,47326.0,47325.0,0.0003493]
[1641067975588,4.98125979,47326.0,47325.0,0.0003493]
[1641067976388,5.00203841,47326.0,47325.0,0.0003493]
[1641067976590,4.98077735,47326.0,47325.0,0.0003493]
[1641067977391,5.00055633,47326.0,47325.0,0.0003493]
[1641067977593,4.97977771,47326.0,47325.0,0.0003493]
[1641067978393,4.99911397,47326.0,47325.0,0.0003493]
[1641067978600,0.05389,47321.0,47310.0,0.00349935]
[1641067978793,0.05389,47315.0,47310.0,0.00349935]
[1641067978993,0.05389,47315.0,47311.0,0.00063509]
[1641067979240,0.05389,47313.0,47311.0,0.00063509]
[1641067979941,0.393583,47312.0,47311.0,0.00063509]
[1641067980141,0.05389,47312.0,47311.0,0.15063509]
[1641067980840,0.393583,47312.0,47311.0,0.15063509]
[1641067981042,0.723583,47312.0,47311.0,0.15063509]
[1641067981640,0.74541889,47312.0,47311.0,0.15063509]
[1641067982442,0.7668584,47312.0,47311.0,0.15063509]
[1641067982646,0.74502251,47312.0,47311.0,0.15063509]
[1641067983081,0.41502251,47312.0,47311.0,0.15063509]
[1641067983484,0.43480803,47312.0,47311.0,0.15063509]
[1641067983682,0.41336852,47312.0,47307.0,0.24120331]
[1641067983881,0.38367552,47312.0,47311.0,0.14063509]
[1641067984082,0.72336852,47312.0,47311.0,0.14063509]
[1641067984483,0.74431137,47312.0,47311.0,0.14063509]
[1641067984884,0.72452585,47312.0,47311.0,0.14063509]
[1641067985083,0.38483285,47312.0,47311.0,0.14063509]
[1641067985282,0.38483285,47312.0,47309.0,0.27036512]
[1641067985482,0.40404377,47312.0,47311.0,0.12063509]
[1641067985681,0.38310092,47312.0,47311.0,0.12063509]
[1641067986283,0.72279392,47312.0,47311.0,0.12063509]
[1641067986483,0.7431845,47312.0,47311.0,0.12063509]
[1641067986752,0.72397358,47312.0,47311.0,0.12063509]
[1641067987557,0.74516081,47312.0,47311.0,0.12063509]
[1641067987854,0.72477023,47312.0,47311.0,0.12063509]
[1641067988353,0.07507723,47312.0,47311.0,0.12063509]
[1641067988553,0.07507723,47312.0,47311.0,0.38952267]
[1641067988554,0.09545133,47312.0,47311.0,0.38952267]
[1641067988756,0.0742641,47312.0,47311.0,1.02362267]
[1641067988954,0.0742641,47312.0,47311.0,1.36331567]
[1641067989854,0.05389,47324.0,47315.0,0.05283]
[1641067990054,0.05389,47324.0,47320.0,0.12063509]
[1641067990510,0.05389,47324.0,47323.0,0.12063509]
[1641067990705,0.393583,47324.0,47323.0,0.12063509]
[1641067990905,1.003583,47324.0,47323.0,0.12063509]
[1641067991319,0.393583,47324.0,47323.0,0.12063509]
[1641067991705,0.41210545,47324.0,47323.0,0.12063509]
[1641067991909,0.79210545,47324.0,47323.0,0.12063509]
[1641067992306,2.71165036,47324.0,47323.0,0.12063509]
[1641067992708,2.7305121,47324.0,47323.0,0.12063509]
[1641067993010,2.71198965,47324.0,47323.0,0.12063509]
[1641067993607,2.73061471,47324.0,47323.0,0.12063509]
[1641067993808,2.71175297,47324.0,47323.0,0.12063509]
[1641067994012,2.33175297,47324.0,47323.0,0.12063509]
[1641067994633,2.35229532,47324.0,47323.0,0.12063509]
[1641067994837,2.33367026,47324.0,47323.0,0.12063509]
[1641067995636,2.25321522,47324.0,47323.0,0.12063509]
[1641067995833,2.23267287,47324.0,47323.0,0.12063509]
[1641067997236,2.25267467,47324.0,47323.0,0.12063509]
[1641067997437,2.23312971,47324.0,47323.0,0.12063509]
[1641067997636,2.25199535,47324.0,47323.0,0.12063509]
[1641067997836,2.23199355,47324.0,47323.0,0.12063509]
[1641067998699,2.25245376,47324.0,47323.0,0.12063509]
[1641067999001,2.23358812,47324.0,47323.0,0.12063509]
[1641067999798,2.23181354,47324.0,47323.0,0.12063509]
[1641068000599,2.25248748,47324.0,47323.0,0.12063509]
[1641068000804,2.23380185,47324.0,47323.0,0.12063509]
[1641068001203,2.22880185,47324.0,47323.0,0.12063509]
[1641068001846,2.22776757,47324.0,47323.0,0.12063509]
[1641068002647,2.24753365,47324.0,47323.0,0.12063509]
[1641068002846,2.22789399,47324.0,47323.0,0.12063509]
[1641068003747,2.24816018,47324.0,47323.0,0.12063509]
[1641068003951,2.2283941,47324.0,47323.0,0.12063509]
[1641068004749,2.24733605,47324.0,47323.0,0.12063509]
[1641068004950,2.22706986,47324.0,47323.0,0.12063509]
[1641068005795,2.22800468,47324.0,47323.0,0.12063509]
[1641068006395,2.22800468,47324.0,47322.0,0.30272765]
[1641068006795,0.0002191,47323.0,47322.0,0.30272765]
[1641068006996,0.1310591,47323.0,47322.0,0.30272765]
[1641068007600,0.5910591,47323.0,47322.0,0.42336274]
[1641068008802,0.60961527,47323.0,47322.0,0.42336274]
[1641068009847,0.63143435,47323.0,47322.0,0.42336274]
[1641068010048,0.61287818,47323.0,47322.0,0.42336274]
[1641068010246,0.60787818,47323.0,47322.0,0.42336274]
[1641068010849,0.62842735,47323.0,47322.0,0.40296012]
[1641068011049,0.60660827,47323.0,47322.0,0.40296012]
[1641068011748,0.62539281,47323.0,47322.0,0.40296012]
[1641068011950,0.49933371,47323.0,47322.0,0.40296012]
[1641068012549,0.799738,47323.0,47322.0,0.40296012]
[1641068012750,0.81888886,47323.0,47322.0,0.39796012]
[1641068013007,0.81888886,47323.0,47322.0,0.27732503]
[1641068013802,0.83917785,47323.0,47322.0,0.27732503]
[1641068014005,0.82002699,47323.0,47322.0,0.27732503]
[1641068014203,0.82002699,47323.0,47322.0,0.39796012]
[1641068014805,0.83910565,47323.0,47322.0,0.39796012]
[1641068015003,0.81881666,47323.0,47322.0,0.39796012]
[1641068015808,0.83872016,47323.0,47322.0,0.39796012]
[1641068016003,0.8196415,47323.0,47322.0,0.39796012]
[1641068016204,0.3596415,47323.0,47322.0,0.39796012]
[1641068016838,0.38119484,47323.0,47322.0,0.39796012]
[1641068017038,0.36129134,47323.0,47322.0,0.39796012]
[1641068017839,0.38134412,47323.0,47322.0,0.39796012]
[1641068018039,0.35979078,47323.0,47322.0,0.39796012]
[1641068018441,0.02005278,47323.0,47322.0,0.39796012]
[1641068018838,0.04129203,47323.0,47322.0,0.39796012]
[1641068019039,0.02123925,47323.0,47322.0,0.39796012]
[1641068019439,0.36097725,47323.0,47322.0,0.39796012]
[1641068020704,0.339738,47323.0,47322.0,0.39796012]
[1641068020908,0.36065825,47323.0,47322.0,0.39796012]
[1641068021906,0.38237222,47323.0,47322.0,0.39796012]
[1641068022105,0.36145197,47323.0,47322.0,0.39796012]
[1641068023005,0.38133118,47323.0,47322.0,0.39796012]
[1641068023205,0.35961721,47323.0,47322.0,0.39796012]
[1641068024106,0.35981802,47323.0,47322.0,0.39796012]
[1641068025044,0.36106781,47323.0,47322.0,0.39796012]
[1641068025846,0.37989138,47323.0,47322.0,0.39796012]
[1641068026145,0.35856157,47323.0,47322.0,0.39796012]
[1641068026947,0.37955741,47323.0,47322.0,0.39796012]
[1641068027250,0.36073384,47323.0,47322.0,0.39796012]
[1641068028097,0.3601843,47323.0,47322.0,0.39796012]
[1641068028497,0.2601843,47323.0,47322.0,0.39796012]
[1641068028898,0.28002847,47323.0,47322.0,0.39796012]
[1641068029096,0.25958217,47323.0,47322.0,0.39796012]
[1641068030497,1.87312617,47323.0,47322.0,0.39796012]
[1641068030698,1.853282,47323.0,47322.0,0.39796012]
[1641068031955,1.87479913,47323.0,47322.0,0.39796012]
[1641068032960,1.89383291,47323.0,47322.0,0.39796012]
[1641068033158,1.87231578,47323.0,47322.0,0.39796012]
[1641068034059,1.89122174,47323.0,47322.0,0.39796012]
[1641068034259,1.87218796,47323.0,47322.0,0.39796012]
[1641068035062,1.89052249,47323.0,47322.0,0.39796012]
[1641068035687,1.79052249,47323.0,47322.0,0.39796012]
[1641068036086,1.80986452,47323.0,47322.0,0.39796012]
[1641068036288,1.77262403,47323.0,47322.0,0.39796012]
[1641068036988,1.79171765,47323.0,47322.0,0.39796012]
[1641068037188,1.77237562,47323.0,47322.0,0.39796012]
[1641068038688,1.7907625,47323.0,47322.0,0.39796012]
[1641068038889,1.77166888,47323.0,47322.0,0.39796012]
[1641068039090,1.79074108,47323.0,47322.0,0.39796012]
[1641068039334,1.7723542,47323.0,47322.0,0.39796012]
[1641068040639,1.79375696,47323.0,47322.0,0.39796012]
[1641068040836,1.77468476,47323.0,47322.0,0.39796012]
[1641068041038,1.79370674,47323.0,47322.0,0.39796012]
[1641068042036,1.81428149,47323.0,47322.0,0.39796012]
[1641068042237,1.77385675,47323.0,47322.0,0.39796012]
[1641068043288,1.77146856,47323.0,47322.0,0.39796012]
[1641068043491,1.63173056,47323.0,47322.0,0.39796012]
[1641068043690,1.53173056,47323.0,47322.0,0.39796012]
[1641068044089,1.55173599,47323.0,47322.0,0.39796012]
[1641068044288,1.53354943,47323.0,47322.0,0.39796012]
[1641068044689,1.74818443,47323.0,47322.0,0.39796012]
[1641068044890,1.53354943,47323.0,47322.0,0.39796012]
[1641068045088,1.55254195,47323.0,47322.0,0.39796012]
[1641068045291,1.53253652,47323.0,47322.0,0.39796012]
[1641068046189,1.55108022,47323.0,47322.0,0.39796012]
[1641068046391,1.7467227,47323.0,47322.0,0.39796012]
[1641068047337,1.74805176,47323.0,47322.0,0.39796012]
[1641068048239,1.76996744,47323.0,47322.0,0.39796012]
[1641068048438,1.75009468,47323.0,47322.0,0.39796012]
[1641068049240,1.77172672,47323.0,47322.0,0.39796012]
[1641068049440,1.74981104,47323.0,47322.0,0.39796012]
[1641068050242,1.77082721,47323.0,47322.0,0.39796012]
[1641068050493,1.74919517,47323.0,47322.0,0.39796012]
[1641068051096,1.76774165,47323.0,47322.0,0.39796012]
[1641068051294,1.74672548,47323.0,47322.0,0.39796012]
[1641068052195,1.76782433,47323.0,47322.0,0.39796012]
[1641068052394,1.74927785,47323.0,47322.0,0.39796012]
[1641068053194,1.76966724,47323.0,47322.0,0.39796012]
[1641068053395,10.74856839,47323.0,47322.0,0.39796012]
[1641068054437,10.77042714,47323.0,47322.0,0.39796012]
[1641068054641,10.53540275,47323.0,47322.0,1.30195118]
[1641068054840,9.40589645,47323.0,47322.0,1.40322789]
[1641068055141,6.61599645,47323.0,47322.0,2.18042789]
[1641068055340,6.3032923,47323.0,47322.0,1.65042789]
[1641068055542,6.3032923,47323.0,47322.0,1.60042789]
[1641068055742,6.3032923,47323.0,47322.0,2.71842789]
[1641068055939,6.3032923,47323.0,47322.0,2.77632758]
[1641068056441,6.11332846,47323.0,47322.0,1.65832758]
[1641068056639,6.11332846,47323.0,47322.0,1.23038683]
[1641068057241,6.13343311,47323.0,47322.0,1.54707731]
[1641068057645,6.13343311,47323.0,47322.0,1.82571544]
[1641068058293,6.15183687,47323.0,47322.0,1.82571544]
[1641068058495,6.11124146,47323.0,47322.0,1.82571544]
[1641068058693,6.11124146,47323.0,47322.0,1.21975228]
[1641068059294,6.13313996,47323.0,47322.0,1.21975228]
[1641068059493,6.1147362,47323.0,47322.0,1.21975228]
[1641068060293,6.13350169,47323.0,47322.0,1.21975228]
[1641068060495,6.11160319,47323.0,47322.0,1.21975228]
[1641068061295,6.1314323,47323.0,47322.0,1.21975228]
[1641068061496,6.11266681,47323.0,47322.0,1.21975228]
[1641068062351,6.13218172,47323.0,47322.0,1.21975228]
[1641068062549,6.11235261,47323.0,47322.0,1.21975228]
[1641068063354,6.13305096,47323.0,47322.0,1.21975228]
[1641068063650,6.11353605,47323.0,47322.0,1.21975228]
[1641068064253,6.13524479,47323.0,47322.0,1.21975228]
[1641068064451,6.11454644,47323.0,47322.0,1.21975228]
[1641068065252,6.13490136,47323.0,47322.0,0.9030618]
[1641068065526,6.11319262,47323.0,47322.0,0.9030618]
[1641068066917,6.13161797,47323.0,47322.0,0.9030618]
[1641068067117,6.11126305,47323.0,47322.0,0.9030618]
[1641068067319,6.13154091,47323.0,47322.0,0.9030618]
[1641068067517,6.11311556,47323.0,47322.0,0.9030618]
[1641068068417,6.11319056,47323.0,47322.0,0.9030618]
[1641068069345,6.13362492,47323.0,47322.0,0.9030618]
[1641068069546,6.11327206,47323.0,47322.0,0.9030618]
[1641068070347,6.13156004,47323.0,47322.0,0.9030618]
[1641068070546,6.11112568,47323.0,47322.0,0.9030618]
[1641068071447,6.11235508,47323.0,47322.0,0.9030618]
[1641068071646,6.11235508,47323.0,47322.0,0.90178509]